{"text_format":"1","workbook":"xlsx","n_sheets":4,"sheets":["Hinweise + Impressum","Erläuterungen","Berechnung","Staatenübersicht"],"not_rendered":{"charts":0,"images":4,"macros":1,"external_links":2,"defined_names":16,"comments":1,"pivot_tables":0},"unopened":[],"bounds":{"document_bytes":16777216,"sheet_cells":100000,"rows_first":2000,"rows_last":500,"rows_between":2000,"halvings":0,"cell_chars":16384,"cell_head_chars":4096},"cells_cut":0,"cells_raw":0,"read":"whole","date_system":"1900"}

{"sheet":"Hinweise + Impressum","index":0,"n_rows":38,"n_cols":2,"rows_kept":38,"cut":false,"hidden":false,"merged":[[16,1,16,2]]}
[null,"Allgemeine Hinweise"]
[]
[null,"Versionshinweis"]
[]
[null,"Stand 2019"]
[null,"Version 2019.0"]
[null,"Zum Dokument in der Datenbank"]
[]
[null,"Haftungsausschluss / AGB"]
[]
[null,"Der NWB Verlag übernimmt keine Gewähr und keine Haftung für die Richtigkeit der Ergebnisse."]
[]
[null,"Im Übrigen gelten die die aktuellen AGB der NWB Datenbank und des NWB Verlages."]
[]
[null,"Autoren"]
[]
[null,"Karl-Hermann Eckert\nRonny Sebast"]
[]
[null,"Impressum"]
[]
[null,"NWB Verlag GmbH & Co. KG vertreten durch die Geschäftsführer  "]
[null,"Dr. Felix Friedlaender, Dr. Ludger Kleyboldt, Mark Liedtke."]
[]
[null,"Eschstr. 22 "]
[null,"44629 Herne "]
[]
[null,"www.nwb.de   "]
[]
[null,"AG Bochum HRA 5124 "]
[null,"USt-IdNr.: DE125418075 "]
[]
[null,"Produkt-Support "]
[]
[null,"Bei Fragen zum Produkt wenden Sie sich bitte an unsere Service-Hotline: "]
[]
[null,"Fon 02323.141-960 "]
[]
[null,"support@nwb.de"]

{"sheet":"Erläuterungen","index":1,"n_rows":79,"n_cols":4,"rows_kept":79,"cut":false,"hidden":false,"merged":[[3,2,3,5],[69,3,69,6]]}
[]
[]
[]
[]
[]
[]
[]
[]
[null,null,null,"Mit diesem Berechnungstool haben Sie die Möglichkeit, die Aufwendungen für eine Auslandsdienstreise mit mehreren aufeinanderfolgenden "]
[null,null,null,"unterschiedlichen Orten zu berechnen."]
[]
[null,null,null,"Grundlage für die Berechnung sind die Vorschriften des Einkommensteuergesetzes bzw. der einschlägigen Verwaltungsanweisungen. "]
[]
[null,null,null,"Bei Reisen vom Inland in das Ausland bestimmt sich der Pauschbetrag für die Verpflegungsmehraufwendungen und mögliche Übernachtungskosten"]
[null,null,null,"nach dem Ort, den der Reisende vor 24.00 Uhr Ortszeit erreicht hat. "]
[null,null,null,"Für Rückreisetage aus dem Ausland in das Inland ist der Pauschbetrag des letzten Tätigkeitsortes maßgebend."]
[]
[null,null,null,"Für eintägige Reisen in das Ausland steht ein separates Berechnungsprogramm zur Verfügung: NWB Datenbank DokID JAAAE-82626."]
[]
[null,null,null,"Sie haben die Möglichkeit, mit dem Modul, nahtlos aufeinanderfolgende Dienstreisen zu erfassen. "]
[null,null,null,"Dazu ist es erforderlich, dass das Reiseende einer Etappe gleichzeitig dem Beginn des nächsten Reiseabschnittes entspricht:"]
[]
[]
[]
[]
[]
[]
[]
[null,null,null,"Andernfalls legt das Modul zu Grunde, dass die Dienstreise aus privaten Gründen unterbrochen wurde und berücksichtigt die nachfolgenden Daten"]
[null,null,null," als \"neue\" Dienstreise."]
[]
[null,null,null,"Um Ihnen die Eintragungen im Berechnungstool zu erleichtern, sind in folgenden Spalten Kommentierungen "]
[null,null,null,"enthalten:"]
[null,null,null,"- Beginn der Reise bzw. des jeweiligen Reiseabschnittes"]
[null,null,null,"- Ende der Reise bzw. des jeweiligen Reiseabschnitts"]
[null,null,null,"- Pauschale für Übernachtungskosten - Tagessatz"]
[null,null,null,"- Fahrtkosten - Betrag"]
[null,null,null,"- sonstige Kosten - Bezeichnung   "]
[]
[null,null,null,"Die Kommentierungen werden sichtbar, wenn Sie den Cursor auf das oben rechts befindliche rote Dreieck führen."]
[]
[null,null,null,"Das Auswahlfeld des Reiselandes ist so konfiguriert, dass die Bildschirmansicht vergrößert wird. Beim Klick auf das Symbol rechts im Auswahlfeld "]
[null,null,null,"öffnet sich ein Auswahlmenü, aus welchem Sie das entsprechende Land oder die Region auswählen können."]
[]
[]
[]
[]
[]
[]
[null,null,null,"Sollte Ihr Reiseland nicht im Auswahlfeld aufgeführt sein, gelten für die nicht erfassten Länder die für Luxemburg gültigen Pauschbeträge."]
[null,null,null,"Für nicht erfasste Übersee- und Außengebiete eines Landes ist der für das Mutterland geltende Pauschbetrag maßgebend."]
[]
[null,null,null,"Bitte beachten Sie!"]
[]
[null,null,null,"Die Pauschbeträge für Übernachtungskosten sind ausschließlich in den Fällen der Arbeitgebererstattung anwendbar (R 9.7 Absatz 3 LStR)."]
[]
[null,null,null,"Für den Werbungskostenabzug sind nur die tatsächlichen Übernachtungskosten maßgebend (R 9.7 Absatz 2 LStR); dies gilt entsprechend"]
[null,null,null,"für den Betriebsausgabenabzug (R 4.12 Absatz 2 und 3 EStR)."]
[null,null,null,"Sofern Sie die Pauschbeträge nicht anwenden, tragen Sie die Übernachtungskosten unter der Rubrik sonstige Kosten ein."]
[]
[null,null,null,"Die hier hinterlegten Pauschbeträge wurden zuletzt durch BMF-Schreiben vom 28.11.2018, IV C 5 - S 2353/08/10006:009 "]
[null,null,null,"(NWB DokID: PAAAH-02087) zur steuerlichen Behandlung von Reisekosten und Reisevergütungen bei betrieblich und beruflich "]
[null,null,null,"veranlassten Auslandsreisen ab dem 1. Januar 2019 bekannt gegeben."]
[]
[null,null,null,"Dieses Berechnungsmodul berücksichtigt die seit dem 1. Januar 2014 geltenden Grundsätze für die steuerliche Ermittlung der Reisekosten."]
[null,null,null,"Weitere Ausführungen und Hinweise enthält das ergänzende BMF-Schreiben vom 24.10.2014, IV C 5 - S 2353/14/10002 (NWB DokID: SAAAE-78499)"]
[]
[null,null,null,"Aktuelle Entwicklungen, Zweifelsfragen und akute Fallstricke sind in einer Sonderausgabe des Verlags enthalten."]
[]
[null,null,null,"Hinweise:"]
[null,null,null,"Die Eingabe des Wertes \"Datum\" muss mit \"PUNKT\" erfolgen."]
[null,null,null,"Die Eingabe des Wertes \"Uhrzeit\" muss mit \"DOPPELPUNKT\" erfolgen."]
[null,null,null,"Nur in hellen Feldern können Eingaben erfolgen."]
[null,null,null,"Zu einigen Eingabefeldern wurden Kommentare mit nützlichen Informationen hinterlegt."]
[]
[]
[null,null,null,"Stand Januar 2019"]
[null,null,null,"Karl-Hermann Eckert"]
[null,null,null,"Ronny Sebast"]

{"sheet":"Berechnung","index":2,"n_rows":45,"n_cols":57,"rows_kept":45,"cut":false,"hidden":false,"merged":[[7,48,7,50],[29,5,29,6],[31,5,31,9],[7,26,7,27],[7,22,7,23],[7,30,7,31],[7,35,7,36],[33,5,33,9],[5,6,5,11],[7,5,7,7],[7,9,7,11],[7,39,7,41]]}
[]
[]
[]
[]
[]
[null,null,null,null,null,"Name"]
[null,null,null,null,null,null,null,null,null,null,null,null,null,null,null,null,"Hilfsspalte",null,"Hilfsspalte",null,"Hilfsspalte","Hilfsspalte","Hilfsspalte","Hilfsspalte",null,"Hilfsspalte","Hilfsspalte","Hilfsspalte","Hilfsspalte",null,"Hilfsspalte","Hilfsspalte","Hilfsspalte",null,null,null,null,"Hilfsspalte",null,null,null,null,"Hilfsspalte","Hilfsspalte","Hilfsspalte","Hilfsspalte",null,null,null,null,null,"Hilfsspalte"]
[null,null,null,null,null,"Beginn der Reise bzw. des \njeweiligen Reiseabschnittes",null,null,null,"Ende der Reise bzw. des\njeweiligen Reiseabschnittes",null,null,"\n\nTage",null,"Zweck der Reise","Aufenthaltsort/Land \njeweils vor 24.00 Uhr"," Tage\n",null,"erster",null,"letzter",null,"volle Tage",null,null,null,"erster Tag",null,"\"1 = gleiches Datum\"","gleiche Uhrzeit","letzter Tag",null,"Summe Verpflegung\n","Summe Verpflegungs- mehraufwand",null,"Pauschale für \nÜbernachtungs- kosten",null,null,null,"Kürzung wegen Verköstigung \n(Beachten Sie bitte den Kommentar!)",null,null,"volle Tage",null,"Summe",null,"Kürzungs- betrag\n",null,"Fahrtkosten\n",null,null,null,null,"sonstige Kosten Bezeichnung","sonstige Kosten\nBetrag",null,"Summe\n"]
["Datum","Uhrzeit","Wichtig",null,null,"am","um","von",null,"am","um","nach",null,null,null,null,null,null,"Reisetag ",null,"Reisetag",null,"tage","24 h ",null,null,"tage","14 h bis 24 h",null,null,"tage","14 h bis 24 h",null,null,null,"Tage","Tagessatz",null,null,"F = Tage","M = Tage","A = Tage","24 h ","F","M","A",null,null,"km","Betrag","Summe"]
[]
[null,null,null,null,null,null,null,null,null,null,null,null,{"$f":"IF(F11=\"\",\"\",Q11)","v":""},null,null,null,{"$f":"IF(F11=\"\",\"\",SUM(J11-F11+1))","v":""},null,{"$f":"1440-G11","v":1440},null,{"$f":"+K11","v":"00:00:00"},null,{"$f":"IF($G$11=\"\",\"\",IF(C12=\"WAHR\",(Q11-2),(Q11-2)))","v":""},{"$f":"IF(P11=\"\",\"\",IF(ISNA(VLOOKUP(P11,Staatenübersicht!$A$9:$E$264,2,FALSE))=TRUE,\"Nichtsgefunden\",VLOOKUP(P11,Staatenübersicht!$A$9:$E$264,2,FALSE)))*W11","v":{"$error":"#VALUE!"}},null,null,{"$f":"IF($G$11=\"\",\"\",IF(+G11,1,0))","v":""},{"$f":"IF($G$11=\"\",\"\",IF(ISNA(VLOOKUP(P11,Staatenübersicht!$A$9:$E$264,3,FALSE))=TRUE,\"Nichtsgefunden\",VLOOKUP(P11,Staatenübersicht!$A$9:$E$264,3,FALSE)))*AA11","v":{"$error":"#VALUE!"}},{"$f":"IF(F12=J11,\"1\",\"0\")","v":"1"},"1",{"$f":"IF(+G12,IF(AC11+AD11<2,\"1\",0),1)","v":1},{"$f":"IF($G$11=\"\",\"\",IF(ISNA(VLOOKUP(P11,Staatenübersicht!$A$9:$E$264,3,FALSE))=TRUE,\"Nichtsgefunden\",VLOOKUP(P11,Staatenübersicht!$A$9:$E$264,3,FALSE)))*AE11","v":{"$error":"#VALUE!"}},{"$f":"IF(Q11=\"\",\"\",IF(C11=\"WAHR\",X11+AF11,IF(C12=\"Wahr\",X11+AB11,X11+AB11+AF11)))","v":""},{"$f":"AG11","v":""},null,null,{"$f":"IF($G$11=\"\",\"\",IF(ISNA(VLOOKUP(P11,Staatenübersicht!$A$9:$E$264,5,FALSE))=TRUE,\"0,00 €\",VLOOKUP(P11,Staatenübersicht!$A$9:$E$264,5,FALSE)))","v":""},{"$f":"IF(AJ11=\"\",\"0,00 €\",AJ11*AK11)","v":"0,00 €"},null,null,null,null,{"$f":"IF(P11=\"\",\"\",IF(ISNA(VLOOKUP(P11,Staatenübersicht!$A$9:$E$264,2,FALSE))=TRUE,\"Nichtsgefunden\",VLOOKUP(P11,Staatenübersicht!$A$9:$E$264,2,FALSE)))","v":""},{"$f":"IF(F11=\"\",\"\",(-AQ11*0.2)*AN11)","v":""},{"$f":"IF(F11=\"\",\"\",(-AQ11*0.4)*AO11)","v":""},{"$f":"IF(F11=\"\",\"\",(-AQ11*0.4)*AP11)","v":""},{"$f":"IF(F11=\"\",\"\",(AR11+AS11+AT11))","v":""},null,null,0.3,{"$f":"IF(AW11=\"\",\"\",AW11*AX11)","v":""},{"$f":"IF(AY11=\"\",\"0,00 €\",AY11)","v":"0,00 €"},null,null,null,null,{"$f":"IF(F11=\"\",\"\",AH11+AL11+AZ11+BC11+AU11)","v":""}]
[{"$f":"(IF(J11=F12,\"WAHR\",\"FALSCH\"))","v":"WAHR"},{"$f":"(IF(K11=G12,\"WAHR\",\"FALSCH\"))","v":"WAHR"},{"$f":"IF(F12=\"\",\"\",(IF(OR(A12=\"FALSCH\",B12=\"FALSCH\"),\"FALSCH\",\"WAHR\")))","v":""},null,null,null,null,null,null,null,null,null,"",null,null,null,"",null,1440,null,"00:00:00",null,{"$f":"IF($G$11=\"\",\"\",IF(C12=\"WAHR\",(Q12-1),(Q12-2)))","v":""},{"$f":"IF(P12=\"\",\"\",IF(ISNA(VLOOKUP(P12,Staatenübersicht!$A$9:$E$264,2,FALSE))=TRUE,\"Nichtsgefunden\",VLOOKUP(P12,Staatenübersicht!$A$9:$E$264,2,FALSE)))*W12","v":{"$error":"#VALUE!"}},null,null,"",{"$f":"IF($G$11=\"\",\"\",IF(ISNA(VLOOKUP(P12,Staatenübersicht!$A$9:$E$264,3,FALSE))=TRUE,\"Nichtsgefunden\",VLOOKUP(P12,Staatenübersicht!$A$9:$E$264,3,FALSE)))*AA12","v":{"$error":"#VALUE!"}},"1","1",{"$f":"IF(+G13,IF(AC12+AD12<2,\"1\",0),1)","v":1},{"$f":"IF($G$11=\"\",\"\",IF(ISNA(VLOOKUP(P12,Staatenübersicht!$A$9:$E$264,3,FALSE))=TRUE,\"Nichtsgefunden\",VLOOKUP(P12,Staatenübersicht!$A$9:$E$264,3,FALSE)))*AE12","v":{"$error":"#VALUE!"}},{"$f":"IF(Q12=\"\",\"\",IF(C12=\"WAHR\",X12+AF12,IF(C13=\"Wahr\",X12+AF12,X12+AB12+AF12)))","v":""},"",null,null,{"$f":"IF($G$11=\"\",\"\",IF(ISNA(VLOOKUP(P12,Staatenübersicht!$A$9:$E$264,5,FALSE))=TRUE,\"0,00 €\",VLOOKUP(P12,Staatenübersicht!$A$9:$E$264,5,FALSE)))","v":""},"0,00 €",null,null,null,null,{"$f":"IF(P12=\"\",\"\",IF(ISNA(VLOOKUP(P12,Staatenübersicht!$A$9:$E$264,2,FALSE))=TRUE,\"Nichtsgefunden\",VLOOKUP(P12,Staatenübersicht!$A$9:$E$264,2,FALSE)))","v":""},"","","","",null,null,0.3,{"$f":"IF(AW12=\"\",\"\",AW12*AX12)","v":""},{"$f":"IF(AY12=\"\",\"0,00 €\",AY12)","v":"0,00 €"},null,null,null,null,{"$f":"IF(F12=\"\",\"\",AH12+AL12+AZ12+BC12+AU12)","v":""}]
["WAHR","WAHR","",null,null,null,null,null,null,null,null,null,"",null,null,null,"",null,1440,null,"00:00:00",null,"",{"$f":"IF(P13=\"\",\"\",IF(ISNA(VLOOKUP(P13,Staatenübersicht!$A$9:$E$264,2,FALSE))=TRUE,\"Nichtsgefunden\",VLOOKUP(P13,Staatenübersicht!$A$9:$E$264,2,FALSE)))*W13","v":{"$error":"#VALUE!"}},null,null,"",{"$f":"IF($G$11=\"\",\"\",IF(ISNA(VLOOKUP(P13,Staatenübersicht!$A$9:$E$264,3,FALSE))=TRUE,\"Nichtsgefunden\",VLOOKUP(P13,Staatenübersicht!$A$9:$E$264,3,FALSE)))*AA13","v":{"$error":"#VALUE!"}},"1","1",{"$f":"IF(+G14,IF(AC13+AD13<2,\"1\",0),1)","v":1},{"$f":"IF($G$11=\"\",\"\",IF(ISNA(VLOOKUP(P13,Staatenübersicht!$A$9:$E$264,3,FALSE))=TRUE,\"Nichtsgefunden\",VLOOKUP(P13,Staatenübersicht!$A$9:$E$264,3,FALSE)))*AE13","v":{"$error":"#VALUE!"}},{"$f":"IF(Q13=\"\",\"\",IF(C13=\"WAHR\",X13+AF13,IF(C14=\"Wahr\",X13+AB13,X13+AB13+AF13)))","v":""},"",null,null,{"$f":"IF($G$11=\"\",\"\",IF(ISNA(VLOOKUP(P13,Staatenübersicht!$A$9:$E$264,5,FALSE))=TRUE,\"0,00 €\",VLOOKUP(P13,Staatenübersicht!$A$9:$E$264,5,FALSE)))","v":""},"0,00 €",null,null,null,null,{"$f":"IF(P13=\"\",\"\",IF(ISNA(VLOOKUP(P13,Staatenübersicht!$A$9:$E$264,2,FALSE))=TRUE,\"Nichtsgefunden\",VLOOKUP(P13,Staatenübersicht!$A$9:$E$264,2,FALSE)))","v":""},"","","","",null,null,0.3,"","0,00 €",null,null,null,null,""]
["WAHR","WAHR","",null,null,null,null,null,null,null,null,null,"",null,null,null,"",null,1440,null,"00:00:00",null,"",{"$f":"IF(P14=\"\",\"\",IF(ISNA(VLOOKUP(P14,Staatenübersicht!$A$9:$E$264,2,FALSE))=TRUE,\"Nichtsgefunden\",VLOOKUP(P14,Staatenübersicht!$A$9:$E$264,2,FALSE)))*W14","v":{"$error":"#VALUE!"}},null,null,"",{"$f":"IF($G$11=\"\",\"\",IF(ISNA(VLOOKUP(P14,Staatenübersicht!$A$9:$E$264,3,FALSE))=TRUE,\"Nichtsgefunden\",VLOOKUP(P14,Staatenübersicht!$A$9:$E$264,3,FALSE)))*AA14","v":{"$error":"#VALUE!"}},"1","1",{"$f":"IF(+G15,IF(AC14+AD14<2,\"1\",0),1)","v":1},{"$f":"IF($G$11=\"\",\"\",IF(ISNA(VLOOKUP(P14,Staatenübersicht!$A$9:$E$264,3,FALSE))=TRUE,\"Nichtsgefunden\",VLOOKUP(P14,Staatenübersicht!$A$9:$E$264,3,FALSE)))*AE14","v":{"$error":"#VALUE!"}},"","",null,null,{"$f":"IF($G$11=\"\",\"\",IF(ISNA(VLOOKUP(P14,Staatenübersicht!$A$9:$E$264,5,FALSE))=TRUE,\"0,00 €\",VLOOKUP(P14,Staatenübersicht!$A$9:$E$264,5,FALSE)))","v":""},"0,00 €",null,null,null,null,{"$f":"IF(P14=\"\",\"\",IF(ISNA(VLOOKUP(P14,Staatenübersicht!$A$9:$E$264,2,FALSE))=TRUE,\"Nichtsgefunden\",VLOOKUP(P14,Staatenübersicht!$A$9:$E$264,2,FALSE)))","v":""},"","","","",null,null,0.3,"","0,00 €",null,null,null,null,""]
["WAHR","WAHR","",null,null,null,null,null,null,null,null,null,"",null,null,null,"",null,1440,null,"00:00:00",null,"",{"$f":"IF(P15=\"\",\"\",IF(ISNA(VLOOKUP(P15,Staatenübersicht!$A$9:$E$264,2,FALSE))=TRUE,\"Nichtsgefunden\",VLOOKUP(P15,Staatenübersicht!$A$9:$E$264,2,FALSE)))*W15","v":{"$error":"#VALUE!"}},null,null,"",{"$f":"IF($G$11=\"\",\"\",IF(ISNA(VLOOKUP(P15,Staatenübersicht!$A$9:$E$264,3,FALSE))=TRUE,\"Nichtsgefunden\",VLOOKUP(P15,Staatenübersicht!$A$9:$E$264,3,FALSE)))*AA15","v":{"$error":"#VALUE!"}},"1","1",1,{"$f":"IF($G$11=\"\",\"\",IF(ISNA(VLOOKUP(P15,Staatenübersicht!$A$9:$E$264,3,FALSE))=TRUE,\"Nichtsgefunden\",VLOOKUP(P15,Staatenübersicht!$A$9:$E$264,3,FALSE)))*AE15","v":{"$error":"#VALUE!"}},"","",null,null,{"$f":"IF($G$11=\"\",\"\",IF(ISNA(VLOOKUP(P15,Staatenübersicht!$A$9:$E$264,5,FALSE))=TRUE,\"0,00 €\",VLOOKUP(P15,Staatenübersicht!$A$9:$E$264,5,FALSE)))","v":""},"0,00 €",null,null,null,null,{"$f":"IF(P15=\"\",\"\",IF(ISNA(VLOOKUP(P15,Staatenübersicht!$A$9:$E$264,2,FALSE))=TRUE,\"Nichtsgefunden\",VLOOKUP(P15,Staatenübersicht!$A$9:$E$264,2,FALSE)))","v":""},"","","","",null,null,0.3,"","0,00 €",null,null,null,null,""]
["WAHR","WAHR","",null,null,null,null,null,null,null,null,null,"",null,null,null,"",null,1440,null,"00:00:00",null,"",{"$f":"IF(P16=\"\",\"\",IF(ISNA(VLOOKUP(P16,Staatenübersicht!$A$9:$E$264,2,FALSE))=TRUE,\"Nichtsgefunden\",VLOOKUP(P16,Staatenübersicht!$A$9:$E$264,2,FALSE)))*W16","v":{"$error":"#VALUE!"}},null,null,"",{"$f":"IF($G$11=\"\",\"\",IF(ISNA(VLOOKUP(P16,Staatenübersicht!$A$9:$E$264,3,FALSE))=TRUE,\"Nichtsgefunden\",VLOOKUP(P16,Staatenübersicht!$A$9:$E$264,3,FALSE)))*AA16","v":{"$error":"#VALUE!"}},"1","1",1,{"$f":"IF($G$11=\"\",\"\",IF(ISNA(VLOOKUP(P16,Staatenübersicht!$A$9:$E$264,3,FALSE))=TRUE,\"Nichtsgefunden\",VLOOKUP(P16,Staatenübersicht!$A$9:$E$264,3,FALSE)))*AE16","v":{"$error":"#VALUE!"}},"","",null,null,{"$f":"IF($G$11=\"\",\"\",IF(ISNA(VLOOKUP(P16,Staatenübersicht!$A$9:$E$264,5,FALSE))=TRUE,\"0,00 €\",VLOOKUP(P16,Staatenübersicht!$A$9:$E$264,5,FALSE)))","v":""},"0,00 €",null,null,null,null,{"$f":"IF(P16=\"\",\"\",IF(ISNA(VLOOKUP(P16,Staatenübersicht!$A$9:$E$264,2,FALSE))=TRUE,\"Nichtsgefunden\",VLOOKUP(P16,Staatenübersicht!$A$9:$E$264,2,FALSE)))","v":""},"","","","",null,null,0.3,"","0,00 €",null,null,null,null,""]
["WAHR","WAHR","",null,null,null,null,null,null,null,null,null,"",null,null,null,"",null,1440,null,"00:00:00",null,"",{"$f":"IF(P17=\"\",\"\",IF(ISNA(VLOOKUP(P17,Staatenübersicht!$A$9:$E$264,2,FALSE))=TRUE,\"Nichtsgefunden\",VLOOKUP(P17,Staatenübersicht!$A$9:$E$264,2,FALSE)))*W17","v":{"$error":"#VALUE!"}},null,null,"",{"$f":"IF($G$11=\"\",\"\",IF(ISNA(VLOOKUP(P17,Staatenübersicht!$A$9:$E$264,3,FALSE))=TRUE,\"Nichtsgefunden\",VLOOKUP(P17,Staatenübersicht!$A$9:$E$264,3,FALSE)))*AA17","v":{"$error":"#VALUE!"}},"1","1",1,{"$f":"IF($G$11=\"\",\"\",IF(ISNA(VLOOKUP(P17,Staatenübersicht!$A$9:$E$264,3,FALSE))=TRUE,\"Nichtsgefunden\",VLOOKUP(P17,Staatenübersicht!$A$9:$E$264,3,FALSE)))*AE17","v":{"$error":"#VALUE!"}},"","",null,null,{"$f":"IF($G$11=\"\",\"\",IF(ISNA(VLOOKUP(P17,Staatenübersicht!$A$9:$E$264,5,FALSE))=TRUE,\"0,00 €\",VLOOKUP(P17,Staatenübersicht!$A$9:$E$264,5,FALSE)))","v":""},"0,00 €",null,null,null,null,{"$f":"IF(P17=\"\",\"\",IF(ISNA(VLOOKUP(P17,Staatenübersicht!$A$9:$E$264,2,FALSE))=TRUE,\"Nichtsgefunden\",VLOOKUP(P17,Staatenübersicht!$A$9:$E$264,2,FALSE)))","v":""},"","","","",null,null,0.3,"","0,00 €",null,null,null,null,""]
["WAHR","WAHR","",null,null,null,null,null,null,null,null,null,"",null,null,null,"",null,1440,null,"00:00:00",null,"",{"$f":"IF(P18=\"\",\"\",IF(ISNA(VLOOKUP(P18,Staatenübersicht!$A$9:$E$264,2,FALSE))=TRUE,\"Nichtsgefunden\",VLOOKUP(P18,Staatenübersicht!$A$9:$E$264,2,FALSE)))*W18","v":{"$error":"#VALUE!"}},null,null,"",{"$f":"IF($G$11=\"\",\"\",IF(ISNA(VLOOKUP(P18,Staatenübersicht!$A$9:$E$264,3,FALSE))=TRUE,\"Nichtsgefunden\",VLOOKUP(P18,Staatenübersicht!$A$9:$E$264,3,FALSE)))*AA18","v":{"$error":"#VALUE!"}},"1","1",1,{"$f":"IF($G$11=\"\",\"\",IF(ISNA(VLOOKUP(P18,Staatenübersicht!$A$9:$E$264,3,FALSE))=TRUE,\"Nichtsgefunden\",VLOOKUP(P18,Staatenübersicht!$A$9:$E$264,3,FALSE)))*AE18","v":{"$error":"#VALUE!"}},"","",null,null,{"$f":"IF($G$11=\"\",\"\",IF(ISNA(VLOOKUP(P18,Staatenübersicht!$A$9:$E$264,5,FALSE))=TRUE,\"0,00 €\",VLOOKUP(P18,Staatenübersicht!$A$9:$E$264,5,FALSE)))","v":""},"0,00 €",null,null,null,null,{"$f":"IF(P18=\"\",\"\",IF(ISNA(VLOOKUP(P18,Staatenübersicht!$A$9:$E$264,2,FALSE))=TRUE,\"Nichtsgefunden\",VLOOKUP(P18,Staatenübersicht!$A$9:$E$264,2,FALSE)))","v":""},"","","","",null,null,0.3,"","0,00 €",null,null,null,null,""]
["WAHR","WAHR","",null,null,null,null,null,null,null,null,null,"",null,null,null,"",null,1440,null,"00:00:00",null,"",{"$f":"IF(P19=\"\",\"\",IF(ISNA(VLOOKUP(P19,Staatenübersicht!$A$9:$E$264,2,FALSE))=TRUE,\"Nichtsgefunden\",VLOOKUP(P19,Staatenübersicht!$A$9:$E$264,2,FALSE)))*W19","v":{"$error":"#VALUE!"}},null,null,"",{"$f":"IF($G$11=\"\",\"\",IF(ISNA(VLOOKUP(P19,Staatenübersicht!$A$9:$E$264,3,FALSE))=TRUE,\"Nichtsgefunden\",VLOOKUP(P19,Staatenübersicht!$A$9:$E$264,3,FALSE)))*AA19","v":{"$error":"#VALUE!"}},"1","1",1,{"$f":"IF($G$11=\"\",\"\",IF(ISNA(VLOOKUP(P19,Staatenübersicht!$A$9:$E$264,3,FALSE))=TRUE,\"Nichtsgefunden\",VLOOKUP(P19,Staatenübersicht!$A$9:$E$264,3,FALSE)))*AE19","v":{"$error":"#VALUE!"}},"","",null,null,{"$f":"IF($G$11=\"\",\"\",IF(ISNA(VLOOKUP(P19,Staatenübersicht!$A$9:$E$264,5,FALSE))=TRUE,\"0,00 €\",VLOOKUP(P19,Staatenübersicht!$A$9:$E$264,5,FALSE)))","v":""},"0,00 €",null,null,null,null,{"$f":"IF(P19=\"\",\"\",IF(ISNA(VLOOKUP(P19,Staatenübersicht!$A$9:$E$264,2,FALSE))=TRUE,\"Nichtsgefunden\",VLOOKUP(P19,Staatenübersicht!$A$9:$E$264,2,FALSE)))","v":""},"","","","",null,null,0.3,"","0,00 €",null,null,null,null,""]
["WAHR","WAHR","",null,null,null,null,null,null,null,null,null,"",null,null,null,"",null,1440,null,"00:00:00",null,"",{"$f":"IF(P20=\"\",\"\",IF(ISNA(VLOOKUP(P20,Staatenübersicht!$A$9:$E$264,2,FALSE))=TRUE,\"Nichtsgefunden\",VLOOKUP(P20,Staatenübersicht!$A$9:$E$264,2,FALSE)))*W20","v":{"$error":"#VALUE!"}},null,null,"",{"$f":"IF($G$11=\"\",\"\",IF(ISNA(VLOOKUP(P20,Staatenübersicht!$A$9:$E$264,3,FALSE))=TRUE,\"Nichtsgefunden\",VLOOKUP(P20,Staatenübersicht!$A$9:$E$264,3,FALSE)))*AA20","v":{"$error":"#VALUE!"}},"1","1",1,{"$f":"IF($G$11=\"\",\"\",IF(ISNA(VLOOKUP(P20,Staatenübersicht!$A$9:$E$264,3,FALSE))=TRUE,\"Nichtsgefunden\",VLOOKUP(P20,Staatenübersicht!$A$9:$E$264,3,FALSE)))*AE20","v":{"$error":"#VALUE!"}},"","",null,null,{"$f":"IF($G$11=\"\",\"\",IF(ISNA(VLOOKUP(P20,Staatenübersicht!$A$9:$E$264,5,FALSE))=TRUE,\"0,00 €\",VLOOKUP(P20,Staatenübersicht!$A$9:$E$264,5,FALSE)))","v":""},"0,00 €",null,null,null,null,{"$f":"IF(P20=\"\",\"\",IF(ISNA(VLOOKUP(P20,Staatenübersicht!$A$9:$E$264,2,FALSE))=TRUE,\"Nichtsgefunden\",VLOOKUP(P20,Staatenübersicht!$A$9:$E$264,2,FALSE)))","v":""},"","","","",null,null,0.3,"","0,00 €",null,null,null,null,""]
["WAHR","WAHR","",null,null,null,null,null,null,null,null,null,"",null,null,null,"",null,1440,null,"00:00:00",null,"",{"$f":"IF(P21=\"\",\"\",IF(ISNA(VLOOKUP(P21,Staatenübersicht!$A$9:$E$264,2,FALSE))=TRUE,\"Nichtsgefunden\",VLOOKUP(P21,Staatenübersicht!$A$9:$E$264,2,FALSE)))*W21","v":{"$error":"#VALUE!"}},null,null,"",{"$f":"IF($G$11=\"\",\"\",IF(ISNA(VLOOKUP(P21,Staatenübersicht!$A$9:$E$264,3,FALSE))=TRUE,\"Nichtsgefunden\",VLOOKUP(P21,Staatenübersicht!$A$9:$E$264,3,FALSE)))*AA21","v":{"$error":"#VALUE!"}},"1","1",1,{"$f":"IF($G$11=\"\",\"\",IF(ISNA(VLOOKUP(P21,Staatenübersicht!$A$9:$E$264,3,FALSE))=TRUE,\"Nichtsgefunden\",VLOOKUP(P21,Staatenübersicht!$A$9:$E$264,3,FALSE)))*AE21","v":{"$error":"#VALUE!"}},"","",null,null,{"$f":"IF($G$11=\"\",\"\",IF(ISNA(VLOOKUP(P21,Staatenübersicht!$A$9:$E$264,5,FALSE))=TRUE,\"0,00 €\",VLOOKUP(P21,Staatenübersicht!$A$9:$E$264,5,FALSE)))","v":""},"0,00 €",null,null,null,null,{"$f":"IF(P21=\"\",\"\",IF(ISNA(VLOOKUP(P21,Staatenübersicht!$A$9:$E$264,2,FALSE))=TRUE,\"Nichtsgefunden\",VLOOKUP(P21,Staatenübersicht!$A$9:$E$264,2,FALSE)))","v":""},"","","","",null,null,0.3,"","0,00 €",null,null,null,null,""]
["WAHR","WAHR","",null,null,null,null,null,null,null,null,null,"",null,null,null,"",null,1440,null,"00:00:00",null,"",{"$f":"IF(P22=\"\",\"\",IF(ISNA(VLOOKUP(P22,Staatenübersicht!$A$9:$E$264,2,FALSE))=TRUE,\"Nichtsgefunden\",VLOOKUP(P22,Staatenübersicht!$A$9:$E$264,2,FALSE)))*W22","v":{"$error":"#VALUE!"}},null,null,"",{"$f":"IF($G$11=\"\",\"\",IF(ISNA(VLOOKUP(P22,Staatenübersicht!$A$9:$E$264,3,FALSE))=TRUE,\"Nichtsgefunden\",VLOOKUP(P22,Staatenübersicht!$A$9:$E$264,3,FALSE)))*AA22","v":{"$error":"#VALUE!"}},"1","1",1,{"$f":"IF($G$11=\"\",\"\",IF(ISNA(VLOOKUP(P22,Staatenübersicht!$A$9:$E$264,3,FALSE))=TRUE,\"Nichtsgefunden\",VLOOKUP(P22,Staatenübersicht!$A$9:$E$264,3,FALSE)))*AE22","v":{"$error":"#VALUE!"}},"","",null,null,{"$f":"IF($G$11=\"\",\"\",IF(ISNA(VLOOKUP(P22,Staatenübersicht!$A$9:$E$264,5,FALSE))=TRUE,\"0,00 €\",VLOOKUP(P22,Staatenübersicht!$A$9:$E$264,5,FALSE)))","v":""},"0,00 €",null,null,null,null,{"$f":"IF(P22=\"\",\"\",IF(ISNA(VLOOKUP(P22,Staatenübersicht!$A$9:$E$264,2,FALSE))=TRUE,\"Nichtsgefunden\",VLOOKUP(P22,Staatenübersicht!$A$9:$E$264,2,FALSE)))","v":""},"","","","",null,null,0.3,"","0,00 €",null,null,null,null,""]
["WAHR","WAHR","",null,null,null,null,null,null,null,null,null,"",null,null,null,"",null,1440,null,"00:00:00",null,"",{"$f":"IF(P23=\"\",\"\",IF(ISNA(VLOOKUP(P23,Staatenübersicht!$A$9:$E$264,2,FALSE))=TRUE,\"Nichtsgefunden\",VLOOKUP(P23,Staatenübersicht!$A$9:$E$264,2,FALSE)))*W23","v":{"$error":"#VALUE!"}},null,null,"",{"$f":"IF($G$11=\"\",\"\",IF(ISNA(VLOOKUP(P23,Staatenübersicht!$A$9:$E$264,3,FALSE))=TRUE,\"Nichtsgefunden\",VLOOKUP(P23,Staatenübersicht!$A$9:$E$264,3,FALSE)))*AA23","v":{"$error":"#VALUE!"}},"1","1",1,{"$f":"IF($G$11=\"\",\"\",IF(ISNA(VLOOKUP(P23,Staatenübersicht!$A$9:$E$264,3,FALSE))=TRUE,\"Nichtsgefunden\",VLOOKUP(P23,Staatenübersicht!$A$9:$E$264,3,FALSE)))*AE23","v":{"$error":"#VALUE!"}},"","",null,null,{"$f":"IF($G$11=\"\",\"\",IF(ISNA(VLOOKUP(P23,Staatenübersicht!$A$9:$E$264,5,FALSE))=TRUE,\"0,00 €\",VLOOKUP(P23,Staatenübersicht!$A$9:$E$264,5,FALSE)))","v":""},"0,00 €",null,null,null,null,{"$f":"IF(P23=\"\",\"\",IF(ISNA(VLOOKUP(P23,Staatenübersicht!$A$9:$E$264,2,FALSE))=TRUE,\"Nichtsgefunden\",VLOOKUP(P23,Staatenübersicht!$A$9:$E$264,2,FALSE)))","v":""},"","","","",null,null,0.3,"","0,00 €",null,null,null,null,""]
["WAHR","WAHR","",null,null,null,null,null,null,null,null,null,"",null,null,null,"",null,1440,null,"00:00:00",null,"",{"$f":"IF(P24=\"\",\"\",IF(ISNA(VLOOKUP(P24,Staatenübersicht!$A$9:$E$264,2,FALSE))=TRUE,\"Nichtsgefunden\",VLOOKUP(P24,Staatenübersicht!$A$9:$E$264,2,FALSE)))*W24","v":{"$error":"#VALUE!"}},null,null,"",{"$f":"IF($G$11=\"\",\"\",IF(ISNA(VLOOKUP(P24,Staatenübersicht!$A$9:$E$264,3,FALSE))=TRUE,\"Nichtsgefunden\",VLOOKUP(P24,Staatenübersicht!$A$9:$E$264,3,FALSE)))*AA24","v":{"$error":"#VALUE!"}},"1","1",1,{"$f":"IF($G$11=\"\",\"\",IF(ISNA(VLOOKUP(P24,Staatenübersicht!$A$9:$E$264,3,FALSE))=TRUE,\"Nichtsgefunden\",VLOOKUP(P24,Staatenübersicht!$A$9:$E$264,3,FALSE)))*AE24","v":{"$error":"#VALUE!"}},"","",null,null,{"$f":"IF($G$11=\"\",\"\",IF(ISNA(VLOOKUP(P24,Staatenübersicht!$A$9:$E$264,5,FALSE))=TRUE,\"0,00 €\",VLOOKUP(P24,Staatenübersicht!$A$9:$E$264,5,FALSE)))","v":""},"0,00 €",null,null,null,null,{"$f":"IF(P24=\"\",\"\",IF(ISNA(VLOOKUP(P24,Staatenübersicht!$A$9:$E$264,2,FALSE))=TRUE,\"Nichtsgefunden\",VLOOKUP(P24,Staatenübersicht!$A$9:$E$264,2,FALSE)))","v":""},"","","","",null,null,0.3,"","0,00 €",null,null,null,null,""]
["WAHR","WAHR","",null,null,null,null,null,null,null,null,null,"",null,null,null,"",null,1440,null,"00:00:00",null,"",{"$f":"IF(P25=\"\",\"\",IF(ISNA(VLOOKUP(P25,Staatenübersicht!$A$9:$E$264,2,FALSE))=TRUE,\"Nichtsgefunden\",VLOOKUP(P25,Staatenübersicht!$A$9:$E$264,2,FALSE)))*W25","v":{"$error":"#VALUE!"}},null,null,"",{"$f":"IF($G$11=\"\",\"\",IF(ISNA(VLOOKUP(P25,Staatenübersicht!$A$9:$E$264,3,FALSE))=TRUE,\"Nichtsgefunden\",VLOOKUP(P25,Staatenübersicht!$A$9:$E$264,3,FALSE)))*AA25","v":{"$error":"#VALUE!"}},"1","1",1,{"$f":"IF($G$11=\"\",\"\",IF(ISNA(VLOOKUP(P25,Staatenübersicht!$A$9:$E$264,3,FALSE))=TRUE,\"Nichtsgefunden\",VLOOKUP(P25,Staatenübersicht!$A$9:$E$264,3,FALSE)))*AE25","v":{"$error":"#VALUE!"}},"","",null,null,{"$f":"IF($G$11=\"\",\"\",IF(ISNA(VLOOKUP(P25,Staatenübersicht!$A$9:$E$264,5,FALSE))=TRUE,\"0,00 €\",VLOOKUP(P25,Staatenübersicht!$A$9:$E$264,5,FALSE)))","v":""},"0,00 €",null,null,null,null,{"$f":"IF(P25=\"\",\"\",IF(ISNA(VLOOKUP(P25,Staatenübersicht!$A$9:$E$264,2,FALSE))=TRUE,\"Nichtsgefunden\",VLOOKUP(P25,Staatenübersicht!$A$9:$E$264,2,FALSE)))","v":""},"","","","",null,null,0.3,"","0,00 €",null,null,null,null,""]
["WAHR","WAHR","",null,null,null,null,null,null,null,null,null,"",null,null,null,"",null,1440,null,"00:00:00",null,"",{"$f":"IF(P26=\"\",\"\",IF(ISNA(VLOOKUP(P26,Staatenübersicht!$A$9:$E$264,2,FALSE))=TRUE,\"Nichtsgefunden\",VLOOKUP(P26,Staatenübersicht!$A$9:$E$264,2,FALSE)))*W26","v":{"$error":"#VALUE!"}},null,null,"",{"$f":"IF($G$11=\"\",\"\",IF(ISNA(VLOOKUP(P26,Staatenübersicht!$A$9:$E$264,3,FALSE))=TRUE,\"Nichtsgefunden\",VLOOKUP(P26,Staatenübersicht!$A$9:$E$264,3,FALSE)))*AA26","v":{"$error":"#VALUE!"}},{"$f":"IF(F27=J26,\"0\",\"1\")","v":"0"},"1",1,{"$f":"IF($G$11=\"\",\"\",IF(ISNA(VLOOKUP(P26,Staatenübersicht!$A$9:$E$264,3,FALSE))=TRUE,\"Nichtsgefunden\",VLOOKUP(P26,Staatenübersicht!$A$9:$E$264,3,FALSE)))*AE26","v":{"$error":"#VALUE!"}},"","",null,null,{"$f":"IF($G$11=\"\",\"\",IF(ISNA(VLOOKUP(P26,Staatenübersicht!$A$9:$E$264,5,FALSE))=TRUE,\"0,00 €\",VLOOKUP(P26,Staatenübersicht!$A$9:$E$264,5,FALSE)))","v":""},"0,00 €",null,null,null,null,{"$f":"IF(P26=\"\",\"\",IF(ISNA(VLOOKUP(P26,Staatenübersicht!$A$9:$E$264,2,FALSE))=TRUE,\"Nichtsgefunden\",VLOOKUP(P26,Staatenübersicht!$A$9:$E$264,2,FALSE)))","v":""},"","","","",null,null,0.3,"","0,00 €",null,null,null,null,""]
[]
[null,null,null,null,null,null,null,null,null,null,null,null,null,null,null,null,null,null,null,null,null,null,null,null,null,null,null,null,null,null,null,null,null,null,null,null,null,null,null,null,null,null,null,null,null,null,null,null,"Buchungshinweise des Arbeitgebers"]
[]
[null,null,null,null,null,"Summe gesamt",null,null,null,null,null,{"$f":"SUM(BE11:BE49)","v":0},null,null,null,null,null,null,null,null,null,null,null,null,null,null,null,null,null,null,null,null,null,null,null,null,null,null,null,null,null,null,null,null,null,null,null,null,null,null,null,null,null,"Sachkonto","Betrag"]
[]
[null,null,null,null,null,"ausgezahlter Vorschuss"]
[]
[null,null,null,null,null,"verbleibende Reisekosten",null,null,null,null,null,{"$f":"L30-L32","v":0}]
[]
[]
[null,null,null,null,null,"Die Eingabe des Wertes \"Datum\" muss mit \"PUNKT\" erfolgen."]
[null,null,null,null,null,"Die Eingabe des Wertes \"Uhrzeit\" muss mit \"DOPPELPUNKT\" erfolgen."]
[]
[null,null,null,null,null,"Eingaben sind nur in den weißen Eingabefeldern möglich."]
[]
[]
[null,null,null,null,null,"Stand Januar 2019"]
[null,null,null,null,null,"Karl-Hermann Eckert"]
[null,null,null,null,null,"Ronny Sebast"]

{"sheet":"Staatenübersicht","index":3,"n_rows":264,"n_cols":5,"rows_kept":264,"cut":false,"hidden":true,"merged":[[0,0,7,0],[0,1,0,3],[1,1,1,3],[2,1,2,3]]}
["Land","Pauschbeträge für Verpflegungsmehr-",null,null,"Pauschbetrag"]
[null,"aufwendungen bei einer",null,null,"für Übernach-"]
[null,"Abwesenheitsdauer je Kalendertag von",null,null,"tungskosten"]
[null,"mindestens","weniger als","weniger als"]
[null,"24 Stunden","24, aber","14, aber"]
[null,null,"mindestens","mindestens"]
[null,null,"14 Stunden","8 Stunden"]
[null,"€","€","€","€"]
["Afghanistan",30,20,10,95]
["Ägypten",41,28,10,125]
["Äthiopien",27,18,10,86]
["Äquatorialguinea",36,24,17,166]
["Albanien",29,20,8,113]
["Algerien",51,34,13,173]
["Andorra",34,23,11,45]
["Angola",77,52,26,265]
["Antigua und Barbuda",45,30,14,177]
["Argentinien",34,23,12,144]
["Armenien",23,16,8,63]
["Aserbaidschan",30,20,14,72]
["Australien"]
["–        Canberra",51,34,20,158]
["–        Sydney",68,45,20,184]
["–        Australien im Übrigen",51,34,19,158]
["Bahrain",45,30,12,180]
["Bangladesch",30,20,10,111]
["Barbados",52,35,14,165]
["Belgien",42,28,14,135]
["Benin",40,27,14,101]
["Bolivien",30,20,8,93]
["Bosnien und Herzegowina",18,12,8,73]
["Botsuana",40,27,11,102]
["Brasilien"]
["–        Brasilia",57,38,18,127]
["–        Rio de Janeiro",57,38,16,145]
["–        Sao Paulo",53,36,18,132]
["–        Brasilien im Übrigen",51,34,18,84]
["Brunei",48,32,12,106]
["Bulgarien",22,15,8,90]
["Burkina Faso",44,29,12,84]
["Burundi",47,32,16,98]
["Chile",44,29,14,187]
["China"]
["–        Chengdu",35,24,11,105]
["–        Hongkong",74,49,21,145]
["–        Kanton",40,27,21,113]
["–        Peking",46,31,13,142]
["–        Shanghai",50,33,14,128]
["–        China im Übrigen",50,33,11,78]
["Costa Rica",47,32,11,93]
["Côte d’Ivoire",51,34,18,146]
[null,null,null,20]
["Dänemark",58,39,6,143]
["Dominica",45,30,12,177]
["Dominikanische Republik",45,30,10,147]
["Dschibuti",65,44,16,305]
["Ecuador",44,29,13,97]
["El Salvador",44,29,16,119]
["Eritrea",50,33,10,91]
["Estland",27,18,9,71]
["Fidschi",34,23,null,69]
["Finnland",50,33,13,136]
["Frankreich"]
["–        Lyon",53,36,20,115]
["–        Marseille",46,31,18,101]
["–        Paris sowie die Departments 92, 93 und 94",58,39,17,152]
["–        Straßburg",51,34,16,96]
["–        Frankreich im Übrigen",44,29,15,115]
["Gabun",62,41,20,278]
["Gambia",30,20,6,125]
["Georgien",35,24,10,88]
["Ghana",46,31,13,148]
["Grenada",45,30,12,177]
["Griechenland"]
["–        Athen",46,31,null,132]
["–        Griechenland im Übrigen",36,24,14,135]
["Guatemala",34,23,11,90]
["Guinea",46,31,13,118]
["Guinea-Bissau",24,16,10,86]
["Guyana",45,30,12,177]
["Haiti",58,39,17,130]
["Honduras",48,32,12,101]
["Indien"]
["–        Chennai",32,21,10,85]
["–        Kalkutta",35,24,11,145]
["–        Mumbai",50,33,12,146]
["–        Neu Delhi",38,25,12,185]
["–        Indien im Übrigen",32,21,10,85]
["Indonesien",38,25,13,130]
["Iran",33,22,10,196]
["Irland",44,29,14,92]
["Island",47,32,18,108]
["Israel",56,37,20,191]
["Italien"]
["–        Mailand",45,30,13,158]
["–        Rom",40,27,18,135]
["–        Italien im Übrigen",40,27,12,135]
["Jamaika",57,38,16,138]
["Japan"]
["–        Tokio",66,44,18,233]
["–        Japan im Übrigen",51,34,17,156]
["Jemen",24,16,8,95]
["Jordanien",46,31,12,126]
["Kambodscha",38,25,12,94]
["Kamerun",50,33,14,180]
["Kanada"]
["–        Ottawa",47,32,12,142]
["–        Toronto",51,34,14,161]
["–        Vancouver",50,33,12,140]
["–        Kanada im Übrigen",47,32,12,134]
["Kap Verde",30,20,10,105]
["Kasachstan",45,30,10,111]
["Katar",56,37,19,170]
["Kenia",42,28,12,223]
["Kirgisistan",29,20,6,91]
["Kolumbien",41,28,8,126]
["Kongo, Republik",50,33,19,200]
["Kongo, Demokratische Republik",68,45,20,171]
["Korea, Demokratische Volksrepublik",39,26,14,132]
["Korea, Republik",58,39,9,112]
["Kosovo",23,16,22,57]
["Kroatien",28,19,10,75]
["Kuba",46,31,16,228]
["Kuwait",42,28,14,185]
["Laos",33,22,11,96]
["Lesotho",24,16,8,103]
["Lettland",30,20,6,80]
["Libanon",59,40,15,123]
["Libyen",63,42,15,135]
["Liechtenstein",53,36,16,180]
["Litauen",24,16,9,68]
["Luxemburg",47,32,16,130]
["Madagaskar",34,23,13,87]
["Malawi",47,32,13,123]
["Malaysia",34,23,12,88]
["Malediven",52,35,13,170]
["Mali",41,28,14,122]
["Malta",45,30,10,112]
["Marokko",42,28,14,129]
["Marshall Inseln ",63,42,null,102]
["Mauretanien",39,26,16,105]
["Mauritius",54,36,16,220]
["Mazedonien",29,20,8,95]
["Mexiko",41,28,12,141]
["Mikronesien",33,22,null,116]
["Moldau, Republik",24,16,6,88]
["Monaco",42,28,14,180]
["Mongolei",27,18,10,92]
["Montenegro",29,20,10,94]
["Mosambik",38,25,10,146]
["Myanmar",35,24,16,155]
["Namibia",23,16,10,77]
["Nepal",28,19,11,86]
["Neuseeland",56,37,16,153]
["Nicaragua",36,24,10,81]
["Niederlande",46,31,20,119]
["Niger",41,28,12,89]
["Nigeria",63,42,20,255]
["Norwegen",80,53,22,182]
["Österreich",40,27,10,108]
["Oman",60,40,16,200]
["Pakistan"]
["–        Islamabad",30,20,8,165]
["–        Pakistan im Übrigen",27,18,8,68]
["Palau",51,34,1,179]
["Panama",39,26,null,111]
["Papua-Neuguinea",60,40,null,234]
["Paraguay",38,25,12,108]
["Peru",30,20,13,93]
["Philippinen",33,22,10,116]
["Polen"]
["–        Breslau",33,22,10,117]
["–        Danzig",30,20,null,84]
["–        Krakau",27,18,null,86]
["–        Warschau",29,20,null,109]
["–        Polen im Übrigen",29,20,8,60]
["Portugal",36,24,null,102]
["Ruanda",46,31,12,141]
["Rumänien"]
["–        Bukarest",32,21,9,100]
["–        Rumämien im Übrigen",26,17,9,62]
["Russische Föderation"]
["–        Jekatarinburg",28,19,16,84]
["–        Moskau ",30,20,16,110]
["–        St. Petersburg",26,17,12,114]
["–        RUS im Übrigen",24,16,12,58]
["Sambia",36,24,12,130]
["Samoa",29,20,10,85]
["San Marino",34,23,14,75]
["São Tomé – Príncipe",47,32,14,80]
["Saudi-Arabien"]
["–        Djidda",38,25,16,234]
["–        Riad",48,32,16,179]
["–        Saudi-Arabien im Übrigen",48,32,16,80]
["Schweden",50,33,24,168]
["Schweiz"]
["–        Genf",64,43,21,195]
["–        Schweiz im Übrigen",62,41,16,169]
["Senegal",45,30,14,128]
["Serbien",20,13,10,74]
["Sierra Leone",48,32,13,161]
["Simbabwe",45,30,16,140]
["Singapur",54,36,18,197]
["Slowakische Republik",24,16,8,85]
["Slowenien",33,22,10,95]
["Spanien"]
["–        Barcelona",34,23,12,118]
["–        Kanarische Inseln",40,27,12,115]
["–        Madrid",40,27,null,118]
["–        Palma de Mallorca",35,24,12,121]
["–        Spanien im Übrigen",34,23,12,115]
["Sri Lanka",42,28,14,100]
["St. Kitts und Nevis",45,30,12,177]
["St. Lucia",45,30,15,177]
["St. Vincent und die Grenadinen",45,30,121,177]
["Sudan",35,24,11,115]
["Südafrika"]
["–        Kapstadt",27,18,10,112]
["–        Johannisburg",29,20,null,124]
["–        Südafrika im Übrigen",22,15,10,94]
["Südsudan",34,23,16,150]
["Suriname",45,30,10,177]
["Syrien",38,25,13,140]
["Tadschikistan",27,18,8,118]
["Taiwan",51,34,13,126]
["Tansania",47,32,13,201]
["Thailand",38,25,11,110]
["Togo",35,24,11,108]
["Tonga",39,26,11,94]
["Trinidad und Tobago",45,30,20,177]
["Tschad",64,43,16,163]
["Tschechische Republik",35,24,8,94]
["Türkei"]
["–        Istanbul",35,24,null,104]
["–        Izmir",42,28,14,80]
["–        Türkei im Übrigen",40,27,14,78]
["Tunesien",40,27,11,115]
["Turkmenistan",33,22,10,108]
["Uganda",35,24,11,129]
["Ukraine",32,21,12,98]
["Ungarn",22,15,10,63]
["Uruguay",44,29,12,109]
["Usbekistan",34,23,10,123]
["Vatikanstaat",52,35,18,160]
["Venezuela",69,46,16,127]
["Vereinigte Arabische Emirate",45,30,14,155]
["Vereinigte Staaten von Amerika (USA)"]
["–         Atlanta",62,41,14,175]
["–        Boston",58,39,14,265]
["–         Chicago",54,36,15,209]
["–        Houston",63,42,13,138]
["–         Los Angeles",56,37,17,274]
["–         Miami",64,43,16,151]
["–         New York City",58,39,16,282]
["–        San Francisco",51,34,14,314]
["–         Washington, D. C. ",62,41,14,276]
["–        USA im Übrigen",51,34,12,138]
["Vereinigtes Königreich von Großbritannien und Nordirland"]
["–        London",62,41,19,224]
["–        UK im Übrigen",45,30,14,115]
["Vietnam",41,28,12,86]
["Weißrussland",20,13,9,98]
["Zentralafrikanische Republik",46,31,10,74]
["Zypern",45,30,13,116]